[Event "Titled Tuesday Blitz January 31 Early 2023"]
[White "Lehtosaari, Mauri"]
[Black "Chigaev, Maksim"]
[WhiteFideId "501999"]
[BlackFideId "4108116"]
[WhiteElo "2176"]
[BlackElo "2628"]
[Result "0-1"]
[Round "01"]
[TimeControl "180+2"]
[Date "2023.01.31"]
[WhiteClock "0:00:02"]
[BlackClock "0:01:00"]

1. d4 {[%clk 0:02:57]}  Nf6 {[%clk 0:03:00]} 2. Nf3 {[%clk 0:02:56]}  g6 {[%clk 0:03:00]} 3. Bg5 {[%clk 0:02:55]}  Bg7 {[%clk 0:03:01]} 4. e3 {[%clk 0:02:55]}  O-O {[%clk 0:03:01]} 5. Be2 {[%clk 0:02:54]}  d6 {[%clk 0:02:57]} 6. O-O {[%clk 0:02:53]}  c5 {[%clk 0:02:47]} 7. c3 {[%clk 0:02:43]}  Qb6 {[%clk 0:02:47]} 8. Qb3 {[%clk 0:02:38]}  Be6 {[%clk 0:02:47]} 9. Qxb6 {[%clk 0:02:38]}  axb6 {[%clk 0:02:48]} 10. a3 {[%clk 0:02:38]}  Bd5 {[%clk 0:02:49]} 11. Nbd2 {[%clk 0:02:34]}  Bc6 {[%clk 0:02:49]} 12. Rac1 {[%clk 0:02:15]}  Nbd7 {[%clk 0:02:39]} 13. Bh4 {[%clk 0:02:08]}  b5 {[%clk 0:02:38]} 14. h3 {[%clk 0:01:53]}  Nb6 {[%clk 0:02:34]} 15. Bd1 {[%clk 0:01:46]}  h6 {[%clk 0:02:24]} 16. Re1 {[%clk 0:01:28]}  g5 {[%clk 0:02:10]} 17. Bg3 {[%clk 0:01:28]}  Nc4 {[%clk 0:02:11]} 18. Nxc4 {[%clk 0:01:26]}  bxc4 {[%clk 0:02:11]} 19. Nd2 {[%clk 0:01:26]}  b5 {[%clk 0:02:08]} 20. Bc2 {[%clk 0:01:21]}  Rfd8 {[%clk 0:02:08]} 21. Rcd1 {[%clk 0:01:18]}  Kf8 {[%clk 0:02:07]} 22. f3 {[%clk 0:01:06]}  Nd5 {[%clk 0:01:59]} 23. e4 {[%clk 0:00:57]}  Nf4 {[%clk 0:01:55]} 24. d5 {[%clk 0:00:53]}  Bd7 {[%clk 0:01:42]} 25. h4 {[%clk 0:00:49]}  b4 {[%clk 0:01:27]} 26. Bxf4 {[%clk 0:00:39]}  gxf4 {[%clk 0:01:27]} 27. Nxc4 {[%clk 0:00:24]}  bxc3 {[%clk 0:01:22]} 28. Nb6 {[%clk 0:00:18]}  cxb2 {[%clk 0:01:20]} 29. Nxa8 {[%clk 0:00:19]}  Rxa8 {[%clk 0:01:21]} 30. Bb1 {[%clk 0:00:17]}  Rxa3 {[%clk 0:01:19]} 31. Re2 {[%clk 0:00:16]}  c4 {[%clk 0:01:18]} 32. Rc2 {[%clk 0:00:15]}  Ba4 {[%clk 0:01:18]} 33. Rxc4 {[%clk 0:00:14]}  Bf6 {[%clk 0:01:10]} 34. Rd2 {[%clk 0:00:12]}  Ra1 {[%clk 0:01:06]} 35. Kh2 {[%clk 0:00:11]}  Rxb1 {[%clk 0:01:03]} 36. Rxa4 {[%clk 0:00:11]}  Rh1+ {[%clk 0:01:03]} 37. Kxh1 {[%clk 0:00:11]}  b1=Q+ {[%clk 0:01:04]} 38. Kh2 {[%clk 0:00:07]}  Bxh4 {[%clk 0:01:04]} 39. Rda2 {[%clk 0:00:03]}  Bg3+ {[%clk 0:00:58]} 40. Kh3 {[%clk 0:00:02]}  Qh1+ {[%clk 0:00:58]} 41. Kg4 {[%clk 0:00:02]}  Qh4+ {[%clk 0:00:59]} 42. Kf5 {[%clk 0:00:02]}  Qg5# {[%clk 0:01:00]} 0-1


[Site "https://www.chess.com"]

[Event "Titled Tuesday Blitz January 31 Early 2023"]
[White "Dardha, Daniel"]
[Black "Ezat, Mohamed"]
[WhiteFideId "240990"]
[BlackFideId "10600906"]
[WhiteElo "2631"]
[BlackElo "2402"]
[Result "1/2-1/2"]
[Round "01"]
[TimeControl "180+2"]
[Date "2023.01.31"]
[WhiteClock "0:01:30"]
[BlackClock "0:02:12"]

1. Nf3 {[%clk 0:02:48]}  b5 {[%clk 0:02:57]} 2. e4 {[%clk 0:02:45]}  Bb7 {[%clk 0:02:57]} 3. Bxb5 {[%clk 0:02:45]}  Bxe4 {[%clk 0:02:56]} 4. Nc3 {[%clk 0:02:45]}  Bb7 {[%clk 0:02:55]} 5. d4 {[%clk 0:02:45]}  e6 {[%clk 0:02:55]} 6. O-O {[%clk 0:02:45]}  Nf6 {[%clk 0:02:55]} 7. Bg5 {[%clk 0:02:45]}  Be7 {[%clk 0:02:55]} 8. Re1 {[%clk 0:02:44]}  O-O {[%clk 0:02:55]} 9. h3 {[%clk 0:02:43]}  d6 {[%clk 0:02:54]} 10. Qe2 {[%clk 0:02:39]}  Nbd7 {[%clk 0:02:54]} 11. Rad1 {[%clk 0:02:39]}  Nb6 {[%clk 0:02:53]} 12. Bd3 {[%clk 0:02:36]}  Nbd5 {[%clk 0:02:50]} 13. Nxd5 {[%clk 0:02:36]}  Nxd5 {[%clk 0:02:49]} 14. Bd2 {[%clk 0:02:35]}  a5 {[%clk 0:02:39]} 15. Qe4 {[%clk 0:02:22]}  g6 {[%clk 0:02:38]} 16. Qe2 {[%clk 0:02:20]}  Nb4 {[%clk 0:02:35]} 17. Bh6 {[%clk 0:02:16]}  Nxd3 {[%clk 0:02:33]} 18. Qxd3 {[%clk 0:02:04]}  Re8 {[%clk 0:02:33]} 19. c4 {[%clk 0:02:03]}  Bf6 {[%clk 0:02:29]} 20. Nh2 {[%clk 0:02:00]}  Bg5 {[%clk 0:02:25]} 21. Ng4 {[%clk 0:01:48]}  Bxh6 {[%clk 0:02:24]} 22. Nxh6+ {[%clk 0:01:49]}  Kg7 {[%clk 0:02:24]} 23. Ng4 {[%clk 0:01:44]}  Qg5 {[%clk 0:02:17]} 24. Qf3 {[%clk 0:01:36]}  Bxf3 {[%clk 0:02:14]} 25. gxf3 {[%clk 0:01:34]}  h5 {[%clk 0:02:12]} 26. f4 {[%clk 0:01:30]} 1/2-1/2


[Site "https://www.chess.com"]

[Event "Titled Tuesday Blitz January 31 Early 2023"]
[White "Svane, Rasmus"]
[Black "Ozates, Tuna"]
[WhiteFideId "4657101"]
[BlackFideId "6354521"]
[WhiteElo "2623"]
[BlackElo "2251"]
[Result "1-0"]
[Round "01"]
[TimeControl "180+2"]
[Date "2023.01.31"]
[WhiteClock "0:01:40"]
[BlackClock "0:00:25"]

1. Nf3 {[%clk 0:03:00]}  c5 {[%clk 0:02:56]} 2. c4 {[%clk 0:03:00]}  Nc6 {[%clk 0:02:56]} 3. Nc3 {[%clk 0:02:59]}  Nd4 {[%clk 0:02:53]} 4. Ng1 {[%clk 0:02:58]}  Nf6 {[%clk 0:02:49]} 5. e3 {[%clk 0:02:58]}  Nc6 {[%clk 0:02:50]} 6. Nf3 {[%clk 0:02:58]}  d5 {[%clk 0:02:49]} 7. cxd5 {[%clk 0:02:58]}  Nxd5 {[%clk 0:02:50]} 8. Bb5 {[%clk 0:02:58]}  Nxc3 {[%clk 0:02:49]} 9. bxc3 {[%clk 0:02:36]}  Bd7 {[%clk 0:02:46]} 10. O-O {[%clk 0:02:34]}  e6 {[%clk 0:02:46]} 11. d4 {[%clk 0:02:34]}  a6 {[%clk 0:02:39]} 12. Bd3 {[%clk 0:02:34]}  Bd6 {[%clk 0:02:33]} 13. e4 {[%clk 0:02:34]}  e5 {[%clk 0:02:28]} 14. Bg5 {[%clk 0:02:30]}  Be7 {[%clk 0:02:24]} 15. Bxe7 {[%clk 0:02:27]}  Qxe7 {[%clk 0:02:25]} 16. d5 {[%clk 0:02:26]}  Nd8 {[%clk 0:02:25]} 17. a4 {[%clk 0:02:19]}  f6 {[%clk 0:02:20]} 18. Qb3 {[%clk 0:02:18]}  Qd6 {[%clk 0:02:01]} 19. Rfb1 {[%clk 0:02:17]}  O-O {[%clk 0:02:00]} 20. Nd2 {[%clk 0:02:14]}  Kh8 {[%clk 0:01:50]} 21. Nc4 {[%clk 0:02:14]}  Qc7 {[%clk 0:01:49]} 22. Qb6 {[%clk 0:02:14]}  Rc8 {[%clk 0:01:47]} 23. Qxc7 {[%clk 0:02:10]}  Rxc7 {[%clk 0:01:47]} 24. Rb6 {[%clk 0:02:00]}  Bc8 {[%clk 0:01:44]} 25. Rab1 {[%clk 0:01:52]}  Nf7 {[%clk 0:00:55]} 26. Na5 {[%clk 0:01:48]}  Nd8 {[%clk 0:00:53]} 27. f3 {[%clk 0:01:48]}  g6 {[%clk 0:00:40]} 28. Nc4 {[%clk 0:01:44]}  Kg7 {[%clk 0:00:39]} 29. Nd6 {[%clk 0:01:44]}  Bd7 {[%clk 0:00:29]} 30. Nxb7 {[%clk 0:01:39]}  Nxb7 {[%clk 0:00:27]} 31. Rxb7 {[%clk 0:01:40]}  Rfc8 {[%clk 0:00:25]} 1-0


[Site "https://www.chess.com"]

[Event "Titled Tuesday Blitz January 31 Early 2023"]
[White "Lenderman, Aleksandr"]
[Black "Martic, Ivan"]
[WhiteFideId "2021285"]
[BlackFideId "929301"]
[WhiteElo "2572"]
[BlackElo "2301"]
[Result "1-0"]
[Round "01"]
[TimeControl "180+2"]
[Date "2023.01.31"]
[WhiteClock "0:01:20"]
[BlackClock "0:01:43"]

1. Nf3 {[%clk 0:03:00]}  d5 {[%clk 0:02:58]} 2. e3 {[%clk 0:02:59]}  Nf6 {[%clk 0:02:58]} 3. c4 {[%clk 0:02:59]}  e6 {[%clk 0:02:59]} 4. d4 {[%clk 0:02:59]}  Be7 {[%clk 0:02:59]} 5. Nc3 {[%clk 0:02:58]}  O-O {[%clk 0:02:58]} 6. b3 {[%clk 0:02:57]}  b6 {[%clk 0:02:55]} 7. cxd5 {[%clk 0:02:56]}  exd5 {[%clk 0:02:51]} 8. Bb2 {[%clk 0:02:56]}  Bb7 {[%clk 0:02:50]} 9. Bd3 {[%clk 0:02:56]}  c5 {[%clk 0:02:49]} 10. O-O {[%clk 0:02:56]}  Nbd7 {[%clk 0:02:47]} 11. Qe2 {[%clk 0:02:55]}  a6 {[%clk 0:02:47]} 12. Rfd1 {[%clk 0:02:54]}  Re8 {[%clk 0:02:46]} 13. Rac1 {[%clk 0:02:53]}  Bf8 {[%clk 0:02:44]} 14. Bf5 {[%clk 0:02:47]}  g6 {[%clk 0:02:38]} 15. Bh3 {[%clk 0:02:47]}  Bg7 {[%clk 0:02:37]} 16. dxc5 {[%clk 0:02:46]}  bxc5 {[%clk 0:02:34]} 17. Bxd7 {[%clk 0:02:40]}  Qxd7 {[%clk 0:02:32]} 18. Na4 {[%clk 0:02:40]}  c4 {[%clk 0:02:29]} 19. Nb6 {[%clk 0:02:35]}  Qg4 {[%clk 0:02:19]} 20. Nxa8 {[%clk 0:02:34]}  Bxa8 {[%clk 0:02:19]} 21. h3 {[%clk 0:02:30]}  Qh5 {[%clk 0:02:14]} 22. bxc4 {[%clk 0:02:29]}  dxc4 {[%clk 0:02:15]} 23. Rxc4 {[%clk 0:02:29]}  Ne4 {[%clk 0:02:07]} 24. Bxg7 {[%clk 0:02:28]}  Kxg7 {[%clk 0:02:08]} 25. Qb2+ {[%clk 0:02:10]}  Kg8 {[%clk 0:02:08]} 26. Rcd4 {[%clk 0:01:58]}  Ng5 {[%clk 0:02:07]} 27. Nxg5 {[%clk 0:01:57]}  Qxg5 {[%clk 0:02:08]} 28. Rg4 {[%clk 0:01:57]}  Qe7 {[%clk 0:02:07]} 29. Qd4 {[%clk 0:01:47]}  h5 {[%clk 0:02:06]} 30. Rg3 {[%clk 0:01:43]}  Be4 {[%clk 0:02:06]} 31. Qd6 {[%clk 0:01:37]}  Qb7 {[%clk 0:02:04]} 32. Qf6 {[%clk 0:01:33]}  Bc2 {[%clk 0:01:59]} 33. Rd8 {[%clk 0:01:29]}  Qb5 {[%clk 0:01:55]} 34. Rxe8+ {[%clk 0:01:24]}  Qxe8 {[%clk 0:01:56]} 35. Rg5 {[%clk 0:01:22]}  Bd3 {[%clk 0:01:47]} 36. Rd5 {[%clk 0:01:21]}  Qb8 {[%clk 0:01:43]} 37. Rd8+ {[%clk 0:01:20]} 1-0


[Site "https://www.chess.com"]

[Event "Titled Tuesday Blitz January 31 Early 2023"]
[White "Rasulov, Vugar"]
[Black "Golubev, Mikhail"]
[WhiteFideId "13402390"]
[BlackFideId "14100983"]
[WhiteElo "2523"]
[BlackElo "2461"]
[Result "1-0"]
[Round "01"]
[TimeControl "180+2"]
[Date "2023.01.31"]
[WhiteClock "0:00:44"]
[BlackClock "0:00:04"]

1. d4 {[%clk 0:02:56]}  Nf6 {[%clk 0:02:59]} 2. c4 {[%clk 0:02:56]}  g6 {[%clk 0:02:59]} 3. Nc3 {[%clk 0:02:56]}  Bg7 {[%clk 0:03:00]} 4. e4 {[%clk 0:02:56]}  d6 {[%clk 0:03:00]} 5. h3 {[%clk 0:02:56]}  O-O {[%clk 0:02:59]} 6. Be3 {[%clk 0:02:57]}  Na6 {[%clk 0:02:59]} 7. g4 {[%clk 0:02:51]}  e5 {[%clk 0:02:55]} 8. d5 {[%clk 0:02:51]}  Nc5 {[%clk 0:02:55]} 9. Bd3 {[%clk 0:02:51]}  h5 {[%clk 0:02:48]} 10. g5 {[%clk 0:02:42]}  Nh7 {[%clk 0:02:43]} 11. Nf3 {[%clk 0:02:42]}  f5 {[%clk 0:02:24]} 12. gxf6 {[%clk 0:02:41]}  Nxd3+ {[%clk 0:01:44]} 13. Qxd3 {[%clk 0:02:38]}  Qxf6 {[%clk 0:01:44]} 14. Nd2 {[%clk 0:02:33]}  Ng5 {[%clk 0:01:20]} 15. h4 {[%clk 0:01:46]}  Nf3+ {[%clk 0:01:19]} 16. Kd1 {[%clk 0:01:47]}  Nd4 {[%clk 0:01:14]} 17. Bxd4 {[%clk 0:01:36]}  exd4 {[%clk 0:01:13]} 18. Nb5 {[%clk 0:01:37]}  Bg4+ {[%clk 0:00:44]} 19. Kc2 {[%clk 0:01:30]}  a6 {[%clk 0:00:40]} 20. Nxc7 {[%clk 0:01:25]}  Rac8 {[%clk 0:00:40]} 21. f3 {[%clk 0:01:15]}  Rxc7 {[%clk 0:00:24]} 22. fxg4 {[%clk 0:01:15]}  b5 {[%clk 0:00:25]} 23. Raf1 {[%clk 0:01:08]}  bxc4 {[%clk 0:00:23]} 24. Nxc4 {[%clk 0:01:08]}  Qxf1 {[%clk 0:00:22]} 25. Rxf1 {[%clk 0:01:08]}  Rxf1 {[%clk 0:00:21]} 26. Qxf1 {[%clk 0:01:08]}  hxg4 {[%clk 0:00:20]} 27. Kd3 {[%clk 0:01:08]}  Rf7 {[%clk 0:00:18]} 28. Qg2 {[%clk 0:00:53]}  Rf3+ {[%clk 0:00:17]} 29. Kd2 {[%clk 0:00:54]}  Bh6+ {[%clk 0:00:15]} 30. Kd1 {[%clk 0:00:54]}  d3 {[%clk 0:00:08]} 31. e5 {[%clk 0:00:44]}  dxe5 {[%clk 0:00:04]} 32. d6 {[%clk 0:00:44]} 1-0


[Site "https://www.chess.com"]

[Event "Titled Tuesday Blitz January 31 Early 2023"]
[White "Bruzon Batista, Lazaro"]
[Black "Girsh, Daniel"]
[WhiteFideId "3503739"]
[BlackFideId "30949190"]
[WhiteElo "2611"]
[BlackElo "2123"]
[Result "1-0"]
[Round "01"]
[TimeControl "180+2"]
[Date "2023.01.31"]
[WhiteClock "0:00:18"]
[BlackClock "0:00:15"]

1. d4 {[%clk 0:03:00]}  Nf6 {[%clk 0:02:58]} 2. Nf3 {[%clk 0:03:00]}  d5 {[%clk 0:02:58]} 3. c4 {[%clk 0:02:59]}  e6 {[%clk 0:02:58]} 4. Nc3 {[%clk 0:02:59]}  Bb4 {[%clk 0:02:58]} 5. cxd5 {[%clk 0:02:58]}  exd5 {[%clk 0:02:58]} 6. Qa4+ {[%clk 0:02:58]}  Nc6 {[%clk 0:02:57]} 7. Bg5 {[%clk 0:02:58]}  h6 {[%clk 0:02:57]} 8. Bxf6 {[%clk 0:02:58]}  Qxf6 {[%clk 0:02:57]} 9. e3 {[%clk 0:02:59]}  O-O {[%clk 0:02:57]} 10. Be2 {[%clk 0:03:00]}  Rd8 {[%clk 0:02:34]} 11. O-O {[%clk 0:02:59]}  Bg4 {[%clk 0:02:16]} 12. Rfc1 {[%clk 0:02:55]}  a5 {[%clk 0:02:13]} 13. Qd1 {[%clk 0:02:54]}  Ne7 {[%clk 0:02:06]} 14. a3 {[%clk 0:02:32]}  Bd6 {[%clk 0:02:04]} 15. Na4 {[%clk 0:02:32]}  c6 {[%clk 0:01:56]} 16. Nc5 {[%clk 0:02:27]}  Rab8 {[%clk 0:01:51]} 17. b4 {[%clk 0:02:26]}  axb4 {[%clk 0:01:45]} 18. axb4 {[%clk 0:02:26]}  Nf5 {[%clk 0:01:42]} 19. Rab1 {[%clk 0:02:21]}  Qg6 {[%clk 0:01:35]} 20. Nd3 {[%clk 0:02:13]}  Qh5 {[%clk 0:01:31]} 21. g3 {[%clk 0:02:01]}  Re8 {[%clk 0:01:28]} 22. Rb2 {[%clk 0:02:00]}  Re6 {[%clk 0:01:14]} 23. Nfe5 {[%clk 0:01:53]}  Bxe2 {[%clk 0:01:12]} 24. Qxe2 {[%clk 0:01:54]}  Qg5 {[%clk 0:01:04]} 25. Qf3 {[%clk 0:01:43]}  f6 {[%clk 0:00:58]} 26. Nd7 {[%clk 0:01:41]}  Rbe8 {[%clk 0:00:51]} 27. Nf4 {[%clk 0:01:30]}  Re4 {[%clk 0:00:43]} 28. Nh3 {[%clk 0:01:18]}  Qg6 {[%clk 0:00:41]} 29. Nc5 {[%clk 0:01:14]}  Nh4 {[%clk 0:00:29]} 30. Qd1 {[%clk 0:00:54]}  Rg4 {[%clk 0:00:25]} 31. Kf1 {[%clk 0:00:46]}  Nf5 {[%clk 0:00:23]} 32. Rc3 {[%clk 0:00:33]}  Qh5 {[%clk 0:00:22]} 33. Ng1 {[%clk 0:00:32]}  Qg6 {[%clk 0:00:04]} 34. Qf3 {[%clk 0:00:31]}  Rg5 {[%clk 0:00:04]} 35. Nh3 {[%clk 0:00:31]}  Rg4 {[%clk 0:00:04]} 36. Nd3 {[%clk 0:00:30]}  Nh4 {[%clk 0:00:04]} 37. gxh4 {[%clk 0:00:30]}  Rxh4 {[%clk 0:00:04]} 38. Ndf4 {[%clk 0:00:29]}  Qf5 {[%clk 0:00:04]} 39. Rc1 {[%clk 0:00:22]}  Re4 {[%clk 0:00:04]} 40. Qg3 {[%clk 0:00:22]}  Bxf4 {[%clk 0:00:04]} 41. Qxh4 {[%clk 0:00:20]}  Bxe3 {[%clk 0:00:04]} 42. Qxe4 {[%clk 0:00:18]}  dxe4 {[%clk 0:00:04]} 43. Re1 {[%clk 0:00:16]}  Qxh3+ {[%clk 0:00:04]} 44. Ke2 {[%clk 0:00:15]}  Qf3+ {[%clk 0:00:05]} 45. Kf1 {[%clk 0:00:16]}  Bf4 {[%clk 0:00:04]} 46. Rc2 {[%clk 0:00:14]}  Bxh2 {[%clk 0:00:04]} 47. Re3 {[%clk 0:00:14]}  Qh3+ {[%clk 0:00:05]} 48. Ke2 {[%clk 0:00:14]}  Qg4+ {[%clk 0:00:04]} 49. Kd2 {[%clk 0:00:14]}  Bd6 {[%clk 0:00:05]} 50. Kc3 {[%clk 0:00:15]}  Qf4 {[%clk 0:00:05]} 51. Rce2 {[%clk 0:00:15]}  Be7 {[%clk 0:00:05]} 52. Kc4 {[%clk 0:00:16]}  Bf8 {[%clk 0:00:04]} 53. b5 {[%clk 0:00:16]}  Qd6 {[%clk 0:00:05]} 54. bxc6 {[%clk 0:00:16]}  Qd5+ {[%clk 0:00:05]} 55. Kxd5 {[%clk 0:00:16]}  bxc6+ {[%clk 0:00:06]} 56. Kxc6 {[%clk 0:00:16]}  g6 {[%clk 0:00:07]} 57. Rxe4 {[%clk 0:00:16]}  f5 {[%clk 0:00:07]} 58. Re8 {[%clk 0:00:17]}  Kf7 {[%clk 0:00:08]} 59. Rxf8+ {[%clk 0:00:17]}  Kxf8 {[%clk 0:00:09]} 60. d5 {[%clk 0:00:17]}  Kf7 {[%clk 0:00:10]} 61. d6 {[%clk 0:00:18]}  Kf6 {[%clk 0:00:11]} 62. d7 {[%clk 0:00:18]}  f4 {[%clk 0:00:11]} 63. d8=Q+ {[%clk 0:00:18]}  Kf5 {[%clk 0:00:12]} 64. Qd5+ {[%clk 0:00:17]}  Kg4 {[%clk 0:00:12]} 65. Qg2+ {[%clk 0:00:17]}  Kf5 {[%clk 0:00:12]} 66. f3 {[%clk 0:00:17]}  g5 {[%clk 0:00:12]} 67. Qf2 {[%clk 0:00:17]}  h5 {[%clk 0:00:13]} 68. Qc5+ {[%clk 0:00:17]}  Kf6 {[%clk 0:00:13]} 69. Qe5+ {[%clk 0:00:18]}  Kg6 {[%clk 0:00:14]} 70. Qe6+ {[%clk 0:00:18]}  Kg7 {[%clk 0:00:14]} 71. Qd7+ {[%clk 0:00:17]}  Kg6 {[%clk 0:00:14]} 72. Re6+ {[%clk 0:00:18]}  Kf5 {[%clk 0:00:15]} 73. Qd5# {[%clk 0:00:18]} 1-0


[Site "https://www.chess.com"]

[Event "Titled Tuesday Blitz January 31 Early 2023"]
[White "Rangel, Daniel"]
[Black "Vokhidov, Shamsiddin"]
[WhiteFideId "2124475"]
[BlackFideId "14204223"]
[WhiteElo "2207"]
[BlackElo "2586"]
[Result "0-1"]
[Round "01"]
[TimeControl "180+2"]
[Date "2023.01.31"]
[WhiteClock "0:00:08"]
[BlackClock "0:01:11"]

1. c4 {[%clk 0:02:58]}  e5 {[%clk 0:02:59]} 2. g3 {[%clk 0:02:58]}  c6 {[%clk 0:02:58]} 3. Bg2 {[%clk 0:02:58]}  d5 {[%clk 0:02:58]} 4. cxd5 {[%clk 0:02:59]}  cxd5 {[%clk 0:02:59]} 5. Nf3 {[%clk 0:02:59]}  Nc6 {[%clk 0:02:58]} 6. O-O {[%clk 0:02:59]}  e4 {[%clk 0:02:58]} 7. Ne1 {[%clk 0:02:59]}  Nf6 {[%clk 0:02:54]} 8. Nc3 {[%clk 0:02:58]}  Be7 {[%clk 0:02:43]} 9. d3 {[%clk 0:02:58]}  exd3 {[%clk 0:02:42]} 10. Nxd3 {[%clk 0:02:59]}  d4 {[%clk 0:02:42]} 11. Ne4 {[%clk 0:02:31]}  O-O {[%clk 0:02:42]} 12. b3 {[%clk 0:02:17]}  Bf5 {[%clk 0:02:33]} 13. Nxf6+ {[%clk 0:02:14]}  Bxf6 {[%clk 0:02:34]} 14. Bb2 {[%clk 0:02:14]}  Re8 {[%clk 0:02:34]} 15. Rc1 {[%clk 0:02:08]}  Qe7 {[%clk 0:02:34]} 16. Re1 {[%clk 0:01:58]}  Rac8 {[%clk 0:02:29]} 17. Nf4 {[%clk 0:01:51]}  Bg5 {[%clk 0:02:21]} 18. Nd5 {[%clk 0:01:42]}  Qd6 {[%clk 0:02:20]} 19. e3 {[%clk 0:01:30]}  Be4 {[%clk 0:02:13]} 20. Nf4 {[%clk 0:00:57]}  Bxf4 {[%clk 0:02:09]} 21. exf4 {[%clk 0:00:56]}  Bxg2 {[%clk 0:02:06]} 22. Kxg2 {[%clk 0:00:57]}  Rxe1 {[%clk 0:01:57]} 23. Qxe1 {[%clk 0:00:58]}  Qd5+ {[%clk 0:01:58]} 24. Kg1 {[%clk 0:00:57]}  h5 {[%clk 0:01:57]} 25. h4 {[%clk 0:00:56]}  f6 {[%clk 0:01:56]} 26. Qd2 {[%clk 0:00:56]}  Re8 {[%clk 0:01:54]} 27. Re1 {[%clk 0:00:54]}  Re4 {[%clk 0:01:51]} 28. Rxe4 {[%clk 0:00:44]}  Qxe4 {[%clk 0:01:52]} 29. a3 {[%clk 0:00:40]}  d3 {[%clk 0:01:49]} 30. Bc3 {[%clk 0:00:36]}  Ne7 {[%clk 0:01:43]} 31. Qe3 {[%clk 0:00:30]}  Qxe3 {[%clk 0:01:26]} 32. fxe3 {[%clk 0:00:31]}  Nd5 {[%clk 0:01:27]} 33. Bd2 {[%clk 0:00:30]}  f5 {[%clk 0:01:28]} 34. Kf2 {[%clk 0:00:22]}  Nf6 {[%clk 0:01:28]} 35. Ke1 {[%clk 0:00:06]}  Ne4 {[%clk 0:01:26]} 36. Kd1 {[%clk 0:00:05]}  Nxg3 {[%clk 0:01:24]} 37. Bc3 {[%clk 0:00:05]}  Ne4 {[%clk 0:01:25]} 38. Bd4 {[%clk 0:00:05]}  a6 {[%clk 0:01:25]} 39. a4 {[%clk 0:00:05]}  Kf7 {[%clk 0:01:23]} 40. Kc1 {[%clk 0:00:02]}  g6 {[%clk 0:01:22]} 41. Kd1 {[%clk 0:00:02]}  Ke6 {[%clk 0:01:23]} 42. Kc1 {[%clk 0:00:01]}  Kd5 {[%clk 0:01:24]} 43. Kd1 {[%clk 0:00:01]}  b5 {[%clk 0:01:18]} 44. axb5 {[%clk 0:00:01]}  axb5 {[%clk 0:01:19]} 45. Kc1 {[%clk 0:00:01]}  Nc5 {[%clk 0:01:17]} 46. Kb2 {[%clk 0:00:01]}  Ne6 {[%clk 0:01:14]} 47. Kc3 {[%clk 0:00:02]}  Nxd4 {[%clk 0:01:13]} 48. exd4 {[%clk 0:00:02]}  d2 {[%clk 0:01:13]} 49. Kxd2 {[%clk 0:00:01]}  Kxd4 {[%clk 0:01:14]} 50. Kc2 {[%clk 0:00:02]}  b4 {[%clk 0:01:08]} 51. Kd2 {[%clk 0:00:02]}  Ke4 {[%clk 0:01:08]} 52. Ke2 {[%clk 0:00:03]}  Kxf4 {[%clk 0:01:08]} 53. Kd3 {[%clk 0:00:04]}  Kg3 {[%clk 0:01:08]} 54. Kc4 {[%clk 0:00:05]}  f4 {[%clk 0:01:09]} 55. Kxb4 {[%clk 0:00:06]}  f3 {[%clk 0:01:10]} 56. Kc5 {[%clk 0:00:06]}  f2 {[%clk 0:01:10]} 57. b4 {[%clk 0:00:07]}  f1=Q {[%clk 0:01:11]} 58. b5 {[%clk 0:00:08]}  Qf5+ {[%clk 0:01:11]} 0-1


[Site "https://www.chess.com"]

[Event "Titled Tuesday Blitz January 31 Early 2023"]
[White "Paravyan, David"]
[Black "Roux, Baptiste"]
[WhiteFideId "4194985"]
[BlackFideId "36017450"]
[WhiteElo "2601"]
[BlackElo "2300"]
[Result "0-1"]
[Round "01"]
[TimeControl "180+2"]
[Date "2023.01.31"]
[WhiteClock "0:00:03"]
[BlackClock "0:00:15"]

1. Nf3 {[%clk 0:02:59]}  g6 {[%clk 0:02:55]} 2. e4 {[%clk 0:02:58]}  Bg7 {[%clk 0:02:54]} 3. d4 {[%clk 0:02:58]}  d6 {[%clk 0:02:48]} 4. h3 {[%clk 0:02:57]}  Nd7 {[%clk 0:02:46]} 5. Bc4 {[%clk 0:02:56]}  e6 {[%clk 0:02:45]} 6. O-O {[%clk 0:02:54]}  Ne7 {[%clk 0:02:41]} 7. Re1 {[%clk 0:02:52]}  O-O {[%clk 0:02:40]} 8. Nbd2 {[%clk 0:02:51]}  a6 {[%clk 0:02:39]} 9. a4 {[%clk 0:02:48]}  h6 {[%clk 0:02:32]} 10. Nf1 {[%clk 0:02:48]}  Kh7 {[%clk 0:02:31]} 11. Ng3 {[%clk 0:02:48]}  e5 {[%clk 0:02:24]} 12. dxe5 {[%clk 0:02:46]}  Nxe5 {[%clk 0:02:23]} 13. Nxe5 {[%clk 0:02:44]}  Bxe5 {[%clk 0:02:21]} 14. Ra3 {[%clk 0:02:44]}  Be6 {[%clk 0:02:17]} 15. Bf1 {[%clk 0:02:33]}  Nc6 {[%clk 0:02:11]} 16. f4 {[%clk 0:02:24]}  Bd4+ {[%clk 0:02:11]} 17. Kh2 {[%clk 0:02:22]}  Qh4 {[%clk 0:02:05]} 18. Qf3 {[%clk 0:01:57]}  Bc5 {[%clk 0:01:56]} 19. Rd3 {[%clk 0:01:52]}  Nd4 {[%clk 0:01:48]} 20. Qd1 {[%clk 0:01:49]}  Nc6 {[%clk 0:01:41]} 21. c3 {[%clk 0:01:26]}  Rae8 {[%clk 0:01:31]} 22. Qf3 {[%clk 0:01:21]}  Bc4 {[%clk 0:01:18]} 23. Rdd1 {[%clk 0:01:20]}  Bb3 {[%clk 0:01:19]} 24. Rd2 {[%clk 0:01:13]}  Bxa4 {[%clk 0:01:19]} 25. b4 {[%clk 0:01:12]}  Bb6 {[%clk 0:01:16]} 26. Bc4 {[%clk 0:01:11]}  Bb5 {[%clk 0:01:09]} 27. Bxb5 {[%clk 0:00:52]}  axb5 {[%clk 0:01:09]} 28. Rde2 {[%clk 0:00:47]}  Re7 {[%clk 0:01:02]} 29. Qd3 {[%clk 0:00:40]}  Rfe8 {[%clk 0:00:56]} 30. Qxb5 {[%clk 0:00:39]}  h5 {[%clk 0:00:41]} 31. Qd3 {[%clk 0:00:31]}  Qf6 {[%clk 0:00:37]} 32. e5 {[%clk 0:00:27]}  dxe5 {[%clk 0:00:32]} 33. Nxh5 {[%clk 0:00:26]}  Qh4 {[%clk 0:00:23]} 34. g4 {[%clk 0:00:18]}  exf4 {[%clk 0:00:20]} 35. Bxf4 {[%clk 0:00:12]}  Rxe2+ {[%clk 0:00:15]} 36. Rxe2 {[%clk 0:00:12]}  Rxe2+ {[%clk 0:00:16]} 37. Qxe2 {[%clk 0:00:11]}  gxh5 {[%clk 0:00:17]} 38. Qe4+ {[%clk 0:00:07]}  Kg8 {[%clk 0:00:15]} 39. Qe8+ {[%clk 0:00:06]}  Kg7 {[%clk 0:00:15]} 40. Bg3 {[%clk 0:00:03]}  Qg5 {[%clk 0:00:16]} 41. b5 {[%clk 0:00:02]}  Ne7 {[%clk 0:00:14]} 42. h4 {[%clk 0:00:01]}  Qd2+ {[%clk 0:00:13]} 43. Kh3 {[%clk 0:00:01]}  hxg4+ {[%clk 0:00:14]} 44. Kxg4 {[%clk 0:00:02]}  Qe2+ {[%clk 0:00:15]} 45. Kh3 {[%clk 0:00:02]}  Qf1+ {[%clk 0:00:14]} 46. Kh2 {[%clk 0:00:02]}  Bg1+ {[%clk 0:00:14]} 47. Kh1 {[%clk 0:00:02]}  Bf2+ {[%clk 0:00:14]} 48. Kh2 {[%clk 0:00:03]}  Qg1+ {[%clk 0:00:15]} 0-1


[Site "https://www.chess.com"]